bitfinex/quotes_ETHUSD_20250331
["timestamp","ask_amount","ask_price","bid_price","bid_amount"]
[1743392882930,5.53618,1806.3,1805.8,49.40163]
[1743392883141,5.53618,1806.3,1805.9,5.53727]
[1743392883311,14.58593,1806.4,1805.9,11.07454]
[1743392883510,5.53648,1806.2,1805.8,43.8641]
[1743392885342,11.07322,1806.2,1805.8,43.8641]
[1743392885543,5.53681,1806.1,1805.8,38.3264]
[1743392886115,5.53681,1806.1,1805.9,5.564]
[1743392887142,15.34593,1806.4,1805.9,5.564]
[1743392887331,9.8098,1806.4,1806.1,5.53665]
[1743392887656,15.34573,1806.4,1806.0,5.53706]
[1743392887838,20.88185,1806.4,1805.9,11.10115]
[1743392888039,9.05,1806.4,1806.0,6.31547]
[1743392888340,20.12216,1806.4,1806.0,0.7784]
[1743392888513,22.134376,1806.4,1806.0,0.7784]
[1743392889355,22.134376,1806.4,1806.0,6.31549]
[1743392890264,5.53672,1806.2,1805.8,0.7784]
[1743392890414,5.53672,1806.2,1805.9,5.551]
[1743392890727,5.53686,1806.1,1805.9,5.551]
[1743392891354,5.53723,1806.0,1805.6,32.7424]
[1743392891551,5.53723,1806.0,1805.7,5.55]
[1743392891755,11.07457,1806.0,1805.7,5.55]
[1743392891943,5.53723,1806.0,1805.7,5.55]
[1743392892143,5.53752,1805.9,1805.7,5.55]
[1743392892657,5.53752,1805.9,1805.6,31.964]
[1743392892658,5.53801,1805.7,1805.6,31.964]
[1743392892815,5.53801,1805.7,1805.6,37.512]
[1743392893227,11.58779,1805.8,1805.6,31.964]
[1743392894861,17.12573,1805.8,1805.6,31.964]
[1743392895021,5.53801,1805.7,1805.6,31.964]
[1743392896535,5.53801,1805.7,1804.9,11.84128]
[1743392896536,5.53938,1805.3,1804.9,11.84128]
[1743392896853,8.53955,1805.2,1804.8,0.413589]
[1743392897353,8.53955,1805.2,1804.7,31.965]
[1743392900365,14.58955,1805.2,1804.4,0.7559]
[1743392900657,17.77557431,1805.2,1804.5,5.543]
[1743392901662,17.77557431,1805.2,1804.4,0.7559]
[1743392901663,20.50593692,1805.2,1804.4,0.7559]
[1743392901830,20.50593692,1805.2,1804.4,6.3009]
[1743392902031,21.05593692,1805.2,1804.4,6.3009]
[1743392902226,0.7842,1804.3,1803.7,0.7559]
[1743392902454,0.7842,1804.3,1803.6,14.5]
[1743392902455,3.7842,1804.2,1803.9,1.10401038]
[1743392902642,19.03985461,1804.2,1803.4,0.7559]
[1743392902841,19.03985461,1804.2,1803.4,6.30083]
[1743392903043,19.03985461,1804.2,1803.5,14.5]
[1743392903259,19.78584869,1804.2,1803.5,14.5]
[1743392903628,20.20318393,1804.2,1803.5,14.5]
[1743392903974,9.8342,1804.2,1803.5,15.62266596]
[1743392904133,6.05,1804.3,1804.0,5.616]
[1743392904337,11.59233,1804.3,1804.0,5.625]
[1743392904564,6.05,1804.3,1804.0,5.625]
[1743392904728,9.05,1804.3,1804.2,14.5]
[1743392905269,16.051514,1804.3,1804.2,14.5]
[1743392905468,5.54262,1804.2,1803.8,6.4668]
[1743392906072,5.54262,1804.2,1804.1,14.6]
[1743392906271,5.54262,1804.2,1804.1,0.1]
[1743392906844,5.54262,1804.2,1804.1,14.6]
[1743392907046,7.7020334,1804.2,1804.1,14.6]
[1743392907256,7.7020334,1804.2,1804.1,0.1]
[1743392908877,2.1594134,1804.2,1804.1,0.1]
[1743392909180,9.05,1804.3,1804.1,0.1]
[1743392909569,8.54262,1804.2,1804.1,0.1]
[1743392909881,18.49596976,1804.2,1804.1,0.1]
[1743392911279,5.54482,1803.5,1803.1,0.8608]
[1743392911455,5.54522,1803.4,1803.1,0.8608]
[1743392911860,5.54509,1803.4,1803.2,14.5]
[1743392912053,11.49509,1803.4,1803.2,14.5]
[1743392912290,5.54569,1803.2,1803.1,0.1]
[1743392912794,17.10314676,1803.2,1802.4,5.54798]
[1743392912993,0.7902,1802.2,1802.1,0.1]
[1743392913180,3.11314976,1802.5,1802.1,0.1]
[1743392913181,0.7902,1802.5,1802.1,0.1]
[1743392913491,5.5483,1802.4,1802.1,0.1]
[1743392913692,5.54877,1802.2,1802.1,0.1]
[1743392913853,11.09676,1802.4,1802.1,0.1]
[1743392914056,6.957976,1802.4,1802.1,0.1]
[1743392914251,9.33885,1802.3,1802.1,0.1]
[1743392914493,8.54877,1802.2,1802.1,0.1]
[1743392914690,3.0,1802.2,1802.1,0.1]
[1743392914890,12.28885,1802.3,1802.1,0.1]
[1743392914891,5.95,1802.3,1802.1,0.1]
[1743392915074,12.2347176,1802.3,1802.1,0.1]
[1743392915279,5.54877,1802.2,1802.1,0.1]
[1743392915990,12.2347176,1802.3,1802.1,0.1]
[1743392916290,5.95,1802.3,1802.1,0.1]
[1743392916461,3.0,1802.5,1802.1,0.8608]
[1743392916663,5.95,1802.7,1802.2,5.942]
[1743392916864,7.25650468,1803.1,1802.5,5.5477]
[1743392917083,5.54687,1802.9,1802.6,5.944]
[1743392917253,5.54723,1802.7,1802.6,5.944]
[1743392917460,5.54785,1802.5,1802.1,5.6488]
[1743392917658,5.54785,1802.5,1802.1,11.5978]
[1743392917961,15.28758,1802.7,1802.1,11.5978]
[1743392918158,4.528758,1802.7,1802.3,5.54818]
[1743392918382,3.0,1802.7,1802.2,5.54877]
[1743392918585,3.0,1802.7,1802.2,17.05554]
[1743392918760,3.0,1802.7,1802.4,5.5481]
[1743392919098,3.0,1802.7,1802.3,11.09662]
[1743392919466,3.0,1802.7,1802.3,5.54831]
[1743392919665,8.54723,1802.7,1802.3,5.54831]
[1743392920097,5.547,1802.8,1802.3,5.54831]
[1743392920292,5.547,1802.8,1802.2,5.54857]
[1743392920293,5.54728,1802.7,1802.2,5.54857]
[1743392920472,12.2439,1802.8,1802.3,11.50344]
[1743392920667,6.6967,1802.8,1802.3,11.50344]
[1743392920875,5.54877,1802.2,1802.1,0.1]
[1743392921183,5.54855,1802.3,1802.1,0.1]
[1743392921360,6.103455,1802.3,1802.1,0.1]
[1743392921869,5.54758,1802.6,1802.1,0.1]
[1743392922082,5.95,1802.9,1802.2,6.7638]
[1743392922284,5.54418,1803.7,1802.8,5.54682]
[1743392922285,5.54551,1803.3,1802.8,5.54682]
[1743392922595,11.49551,1803.3,1802.8,11.55982]
[1743392922895,5.54608,1803.1,1802.8,6.013]
[1743392923092,1.109181,1803.1,1802.8,6.013]
[1743392923294,5.54676,1802.9,1802.6,6.01]
[1743392923604,5.54742,1802.7,1802.2,43.58956]
[1743392923962,5.54755,1802.6,1802.2,38.041]
[1743392924161,5.54787,1802.5,1802.2,38.041]
[1743392924458,5.54787,1802.5,1802.1,6.42237]
[1743392924459,3.11314976,1802.4,1802.1,1e-05]
[1743392924791,8.54877,1802.2,1802.1,1e-05]
[1743392924988,14.49877,1802.2,1802.1,1e-05]
[1743392925862,11.49877,1802.2,1802.1,1e-05]
[1743392927577,5.95,1802.2,1802.1,1e-05]
[1743392927978,11.49723,1802.7,1802.2,5.54866]
[1743392928169,11.49723,1802.7,1802.3,5.54845]
[1743392928501,11.49723,1802.7,1802.3,6.029]
[1743392928701,5.95,1802.7,1802.3,11.57738]
[1743392928902,5.95,1802.7,1802.3,11.57734]
[1743392929105,11.49727,1802.7,1802.3,11.57734]
[1743392929607,11.49727,1802.7,1802.3,6.029]
[1743392929809,13.201692,1802.7,1802.3,6.029]
[1743392930309,13.201692,1802.7,1802.3,11.57738]
[1743392930507,13.201692,1802.7,1802.3,6.029]
[1743392930976,7.654422,1802.7,1802.3,6.029]
[1743392931172,5.95,1802.6,1802.1,1e-05]
[1743392931480,5.54854,1802.3,1802.1,6.01501]
[1743392932511,11.09728,1802.3,1802.1,6.01501]
[1743392933310,5.54877,1802.2,1802.1,1e-05]
[1743392933471,7.253501,1802.2,1802.1,1e-05]
[1743392934174,11.49854,1802.3,1802.1,1e-05]
[1743392934175,5.95,1802.3,1802.1,1e-05]
[1743392934980,11.49768,1802.6,1802.2,6.35348]
[1743392935187,5.95,1802.6,1802.2,12.36147]
[1743392935406,11.49758,1802.6,1802.2,12.36147]
[1743392935605,5.54839,1802.4,1802.2,6.008]
[1743392936193,11.49761,1802.6,1802.2,11.55677]
[1743392936393,5.54794,1802.5,1802.2,6.008]
[1743392936577,5.54785,1802.5,1802.2,6.008]
[1743392936909,5.54819,1802.4,1802.2,6.008]
[1743392937079,11.0966,1802.4,1802.2,6.008]
[1743392937280,5.54846,1802.3,1802.1,1e-05]
[1743392937488,5.54877,1802.2,1802.1,1e-05]
[1743392940914,6.180586,1802.3,1802.1,1e-05]
[1743392941115,11.729336,1802.3,1802.1,1e-05]
[1743392942111,5.54877,1802.2,1802.1,1e-05]
[1743392942319,8.54877,1802.2,1802.1,1e-05]
[1743392942484,10.0217056,1802.2,1802.1,1e-05]
[1743392944488,10.8308056,1802.2,1802.1,1e-05]
[1743392945222,16.7808056,1802.2,1802.1,1e-05]
[1743392945422,18.12588063,1802.2,1802.1,1e-05]
[1743392945927,6.36095,1801.2,1801.1,0.1]
[1743392946130,15.31094,1801.2,1801.1,0.1]
[1743392946296,5.94999,1801.2,1801.1,0.1]
[1743392947122,5.94999,1801.8,1801.2,0.8001]
[1743392947324,0.8091,1801.9,1801.2,6.35168]
[1743392947621,5.5505,1801.7,1801.2,6.35168]
[1743392947785,5.55074,1801.6,1801.2,0.8001]
[1743392947991,5.55106,1801.5,1801.2,0.8001]
[1743392948218,16.139647,1801.9,1801.1,6.069]
[1743392948219,5.55173,1801.3,1801.1,0.1]
[1743392948389,11.10354,1801.3,1801.1,0.1]
[1743392948591,11.10355,1801.3,1801.1,0.1]
[1743392949126,5.55173,1801.3,1801.1,0.1]
[1743392949724,5.55185,1801.2,1801.1,0.1]
[1743392950226,7.97594203,1801.9,1801.1,0.1]
[1743392950435,3.0,1801.6,1801.3,5.55136]
[1743392950598,11.50036,1801.7,1801.2,12.33069]
[1743392950803,5.55063,1801.6,1801.2,12.33069]
[1743392951013,5.55065,1801.6,1801.2,12.33069]
[1743392951221,5.55132,1801.4,1801.2,6.7791]
[1743392951601,5.55154,1801.3,1801.2,6.7791]
[1743392951798,5.55154,1801.3,1801.1,0.1]
[1743392952002,11.10337,1801.3,1801.1,0.1]
[1743392952236,5.55154,1801.3,1801.1,0.1]
[1743392952538,11.10244,1801.5,1801.1,0.1]
[1743392952837,12.3831741,1801.5,1801.1,0.1]
[1743392953005,5.55148,1801.4,1801.1,0.1]
[1743392953206,5.55156,1801.3,1801.1,0.1]
[1743392953434,5.55148,1801.4,1801.1,0.1]
[1743392953639,6.8316941,1801.5,1801.1,0.1]
[1743392953938,12.3829141,1801.5,1801.1,5.65191]
[1743392954939,5.55158,1801.3,1801.1,0.1]
[1743392955106,5.55124,1801.4,1801.1,0.1]
[1743392955822,5.55124,1801.4,1801.2,5.958]
[1743392956029,1.2807541,1801.5,1801.2,5.958]
[1743392956216,5.94999,1801.7,1801.3,5.55129]
[1743392956554,5.94999,1801.7,1801.4,0.7616]
[1743392956843,5.55066,1801.6,1801.4,0.7616]
[1743392957216,5.55092,1801.5,1801.2,6.7196]
[1743392957415,5.55132,1801.4,1801.2,0.7616]
[1743392957733,5.5513,1801.4,1801.2,6.7096]
[1743392957940,5.5513,1801.4,1801.2,0.7616]
[1743392958145,11.1028,1801.4,1801.2,0.7616]
[1743392958357,5.5516,1801.3,1801.1,0.1]
[1743392958717,5.55185,1801.2,1801.1,0.1]
[1743392961715,5.55185,1801.2,1801.1,1e-05]
[1743392961716,15.27804,1801.2,1801.1,1e-05]
[1743392962314,16.07311503,1801.2,1801.1,1e-05]
[1743392962652,27.68796126,1801.2,1801.1,1e-05]
[1743392963014,21.73296126,1801.2,1801.1,1e-05]
[1743392963222,21.73296126,1801.2,1800.1,0.1]
[1743392963223,8.55247,1801.0,1800.1,0.1]
[1743392963449,3.0,1800.6,1800.1,0.1]
[1743392963756,5.55448,1800.4,1800.1,0.1]
[1743392963959,5.55364,1800.7,1800.2,0.7616]
[1743392964127,5.94999,1800.8,1800.4,5.55431]
[1743392964332,5.94999,1800.8,1800.5,5.55384]
[1743392964556,5.55259,1801.0,1800.6,0.7616]
[1743392964761,5.55285,1800.9,1800.6,0.7616]
[1743392964928,5.55258,1801.0,1800.6,0.7616]
[1743392965255,5.55258,1801.0,1800.7,6.004]
[1743392965464,5.55278,1800.9,1800.7,6.004]
[1743392965625,11.50168,1801.3,1800.8,5.55305]
[1743392965626,11.50173,1801.3,1800.8,5.55305]
[1743392965830,5.55192,1801.2,1800.8,5.55295]
[1743392966052,6.661522,1801.4,1800.9,11.86698]
[1743392966327,5.94999,1801.5,1801.1,5.55201]
[1743392966524,11.50096,1801.5,1801.1,11.55401]
[1743392966726,11.50035,1801.7,1801.2,5.55177]
[1743392966954,11.10171,1801.6,1801.2,0.7616]
[1743392967162,5.94999,1801.7,1801.3,5.55129]
[1743392967348,11.50047,1801.7,1801.3,5.55129]
[1743392967554,17.05106,1801.7,1801.2,11.86485]
[1743392967733,17.05106,1801.7,1801.2,6.31318]
[1743392968134,5.55065,1801.6,1801.2,6.31318]
[1743392968631,5.54958,1802.0,1801.7,0.7616]
[1743392968852,5.54986,1801.9,1801.7,6.7556]
[1743392969041,12.27554,1802.1,1801.7,6.7556]
[1743392969042,5.54941,1802.0,1801.7,6.7556]
[1743392969228,17.04857,1802.1,1801.7,6.7556]
[1743392969442,13.204127,1802.1,1801.7,6.7556]
[1743392969760,5.54955,1802.0,1801.7,6.7556]
[1743392970069,5.54969,1801.9,1801.7,6.7556]
[1743392970430,5.54955,1802.0,1801.7,6.7556]
[1743392970630,5.54921,1802.1,1801.7,6.7556]
[1743392971130,17.8503,1802.3,1801.8,5.54969]
[1743392971325,5.54938,1802.1,1801.7,6.7556]
[1743392971528,5.54952,1802.0,1801.7,6.7556]
[1743392972070,5.54938,1802.1,1801.7,6.7556]
[1743392972361,11.09869,1802.1,1801.7,6.7556]
[1743392972744,5.54931,1802.1,1801.7,6.7556]
[1743392973068,5.54931,1802.1,1801.7,12.30585]
[1743392974354,11.09769,1802.2,1801.7,12.30585]
[1743392974559,5.54924,1802.1,1801.7,6.7556]
[1743392974771,5.54924,1802.1,1801.7,12.30588]
[1743392975064,11.09857,1802.1,1801.7,12.30588]
[1743392975268,11.09857,1802.1,1801.7,6.7556]
[1743392975570,4.109769,1802.2,1801.7,0.7616]
[1743392975742,5.55048,1801.7,1801.5,7.09643613]
[1743392975949,5.55048,1801.7,1801.5,5.97]
[1743392976339,5.55048,1801.7,1801.4,6.7764]
[1743392977069,11.09893,1802.0,1801.5,5.55068]
[1743392977366,5.54988,1801.9,1801.4,12.32756]
[1743392977567,5.54988,1801.9,1801.4,17.87868]
[1743392977747,5.54988,1801.9,1801.5,5.5509]
[1743392978268,12.209746,1801.9,1801.5,5.5509]
[1743392978438,6.659806,1801.9,1801.5,5.5509]
[1743392979175,5.55022,1801.8,1801.4,6.7764]
[1743392979380,6.659656,1801.9,1801.4,12.32759]
[1743392979692,6.659656,1801.9,1801.5,5.5509]
[1743392979835,12.209576,1801.9,1801.5,5.5509]
[1743392980030,12.209576,1801.9,1801.4,12.32752]
[1743392980234,6.659656,1801.9,1801.4,12.3274]
[1743392980468,5.55004,1801.8,1801.4,17.8785]
[1743392980650,6.659656,1801.9,1801.5,5.55092]
[1743392980860,5.5494,1802.0,1801.6,5.55053]
[1743392981048,5.54973,1801.9,1801.5,5.5509]
[1743392981969,5.55002,1801.8,1801.4,12.32762]
[1743392982652,5.55002,1801.8,1801.4,17.87864]
[1743392982853,5.54973,1801.9,1801.5,5.55091]
[1743392983067,5.55007,1801.8,1801.4,17.87862]
[1743392983656,6.185013,1801.9,1801.5,5.55087]
[1743392983877,0.635283,1801.9,1801.6,5.55049]
[1743392984037,5.54922,1802.1,1801.7,5.55027]
[1743392984371,12.987369,1802.2,1801.7,5.55011]
[1743392984571,12.987409,1802.2,1801.8,5.54999]
[1743392984783,5.94999,1802.4,1802.1,5.54892]
[1743392984941,5.54748,1802.7,1802.3,5.54846]
[1743392985142,0.8798,1802.9,1802.2,6.7628]
[1743392985342,5.54788,1802.5,1802.2,6.7628]
[1743392985639,5.54822,1802.4,1802.2,6.7628]
[1743392986063,5.54759,1802.6,1802.2,6.7628]
[1743392986248,8.54739,1802.7,1802.2,12.93548537]
[1743392986453,3.0,1802.7,1802.3,5.54834]
[1743392986656,8.54726,1802.7,1802.3,5.54834]
[1743392986849,11.49692,1802.8,1802.4,5.54799]
[1743392987050,0.1,1802.9,1802.6,5.54741]
[1743392987267,0.1,1802.9,1802.6,5.947]
[1743392987642,5.54723,1802.7,1802.6,5.947]
[1743392988073,11.09473,1802.7,1802.3,5.948]
[1743392988267,5.54723,1802.7,1802.3,11.49625]
[1743392988490,0.7798,1802.7,1802.4,5.54792]
[1743392988690,0.7798,1802.7,1802.2,11.49647]
[1743392988691,5.54766,1802.6,1802.2,11.49647]
[1743392988895,5.54738,1802.7,1802.3,6.36706]
[1743392989114,5.94999,1802.8,1802.3,11.9153]
[1743392989115,11.49697,1802.8,1802.3,11.9153]
[1743392989393,13.7012668,1802.8,1802.4,5.54801]
[1743392989961,5.94999,1802.8,1802.6,5.54728]
[1743392990163,0.1,1802.9,1802.6,11.49028]
[1743392990387,5.64679,1802.9,1802.6,5.943]
[1743392990573,11.09427,1802.8,1802.6,5.943]
[1743392990786,1.109427,1802.7,1802.6,5.943]
[1743392991663,0.1,1802.9,1802.6,5.943]
[1743392991868,5.64665,1802.9,1802.6,5.943]
[1743392992066,5.64689,1802.9,1802.6,5.943]
[1743392992471,5.64662,1802.9,1802.6,5.943]
[1743392992800,5.54712,1802.8,1802.6,5.943]
[1743392993096,12.213684,1802.8,1802.6,5.943]
[1743392993277,6.666494,1802.8,1802.6,5.943]
[1743392993611,5.54779,1802.6,1802.3,0.8188]
[1743392993899,5.5473,1802.7,1802.3,6.36722]
[1743392994278,5.5473,1802.7,1802.3,0.8188]
[1743392994504,0.55473,1802.6,1802.3,0.8188]
[1743392995002,0.7798,1802.8,1802.3,0.8188]
[1743392995367,5.54745,1802.7,1802.3,0.8188]
[1743392995766,11.49744,1802.7,1802.3,6.36726]
[1743392996267,17.04492,1802.7,1802.3,6.36726]
[1743392996465,17.04493,1802.7,1802.3,0.8188]
[1743392996706,1.704493,1802.6,1802.3,0.8188]
[1743392996883,1.704493,1802.6,1802.3,6.36724]
[1743392997083,1.704493,1802.6,1801.7,37.5903]
[1743392997084,5.54929,1802.1,1801.7,37.5903]
[1743392997402,5.54929,1802.1,1801.7,32.04]
[1743392997770,11.09863,1802.1,1801.7,32.04]
[1743392997991,11.09905,1802.0,1801.7,37.976]
[1743392998199,5.54982,1801.9,1801.7,37.976]
[1743392998503,5.54986,1801.9,1801.7,32.04]
[1743392999506,5.54942,1802.0,1801.7,32.04]
[1743392999868,6.659093,1802.1,1801.7,32.04]
[1743393000094,5.54883,1802.2,1801.8,5.54997]
[1743393000295,6.74199,1802.5,1802.0,6.31158]
[1743393000495,5.5482,1802.4,1802.0,6.31158]
[1743393000681,5.54898,1802.2,1802.0,0.7622]
[1743393000892,0.554898,1802.1,1801.8,0.7622]
[1743393001093,5.54953,1802.0,1801.8,0.7622]
[1743393001294,5.94999,1802.2,1801.9,5.54969]
[1743393001497,5.94999,1802.2,1802.0,5.54909]
[1743393001698,5.94999,1802.2,1802.0,5.54928]
[1743393002308,5.94999,1802.2,1801.8,0.7622]
[1743393002472,5.94999,1802.2,1801.8,6.31198]
[1743393002670,11.49881,1802.2,1801.8,6.31198]
[1743393003083,5.94999,1802.2,1801.8,11.86179]
[1743393003309,11.4988,1802.2,1801.8,6.31198]
[1743393003482,11.4988,1802.2,1801.8,7.44646275]
[1743393003684,5.54912,1802.1,1801.8,1.13448275]
[1743393003883,6.104432,1802.0,1801.8,1.13448275]
[1743393004134,6.104432,1802.0,1801.7,32.04]
[1743393004408,5.54963,1802.0,1801.7,32.04]
[1743393004774,5.54981,1801.9,1801.7,32.04]
[1743393004970,5.54939,1802.0,1801.7,32.04]
[1743393005395,11.09895,1802.0,1801.7,32.04]
[1743393005605,5.54939,1802.0,1801.7,32.04]
[1743393006007,11.49907,1802.2,1801.8,5.5499]
[1743393006210,11.49902,1802.2,1801.9,5.54968]
[1743393006383,17.04806,1802.2,1801.8,5.5499]
[1743393007221,5.54908,1802.1,1801.7,37.59027]
[1743393007508,5.94999,1802.2,1801.8,0.8048]
[1743393007811,5.94999,1802.2,1801.9,11.63246]
[1743393008013,5.94999,1802.2,1802.0,5.54938]
[1743393008316,5.94999,1802.2,1802.1,5.54908]
[1743393008485,0.8016,1802.6,1802.1,5.54908]
[1743393008820,5.54909,1802.1,1801.8,0.8048]
[1743393008997,5.55,1801.8,1801.7,32.04]
[1743393009505,5.55035,1801.7,1801.4,0.8048]
[1743393009701,5.55,1801.8,1801.4,0.8048]
[1743393009909,5.55092,1801.5,1801.4,0.8048]
[1743393010213,5.55092,1801.5,1801.3,6.09]
[1743393010449,5.55062,1801.6,1801.3,6.09]
[1743393010591,11.10153,1801.6,1801.3,6.09]
[1743393010792,5.55062,1801.6,1801.3,6.09]
[1743393011495,5.55032,1801.7,1801.3,11.6413]
[1743393011828,0.8016,1801.9,1801.3,6.09]
[1743393012029,5.55098,1801.5,1801.3,6.087]
[1743393012643,5.55051,1801.7,1801.3,6.087]
[1743393012932,5.94999,1801.8,1801.3,6.087]
[1743393012933,5.55089,1801.6,1801.3,6.087]
[1743393013226,11.10178,1801.6,1801.3,6.087]
[1743393013432,5.55089,1801.6,1801.3,6.087]
[1743393014530,5.55036,1801.7,1801.3,11.6385]
[1743393014899,11.50019,1801.8,1801.3,11.6385]
[1743393014900,5.94999,1801.8,1801.4,6.31612]
[1743393015095,5.94999,1801.8,1801.5,5.55078]
[1743393015301,5.94999,1801.8,1801.5,11.10147]
[1743393015532,17.04899,1802.0,1801.6,5.55058]
[1743393016036,5.54974,1801.9,1801.6,14.5]
[1743393016402,11.49939,1802.0,1801.6,5.55058]
[1743393016921,11.49939,1802.0,1801.7,14.5]
[1743393017324,17.04904,1802.0,1801.7,14.5]
[1743393017641,11.49939,1802.0,1801.7,14.5]
[1743393018137,11.49939,1802.0,1801.7,6.057]
[1743393018441,5.94999,1802.0,1801.7,12.23145537]
[1743393018607,5.54853,1802.3,1801.9,5.54952]
[1743393018802,12.28267,1802.4,1801.9,5.54952]
[1743393018803,12.28267,1802.4,1802.0,5.5492]
[1743393019034,17.04662,1802.4,1802.0,5.5492]
[1743393019203,5.5485,1802.3,1802.1,6.053]
[1743393019540,11.49817,1802.4,1802.1,6.053]
[1743393019840,5.54921,1802.1,1801.8,6.8339]
[1743393020218,6.33327,1802.2,1801.8,6.8339]
[1743393020609,5.54908,1802.1,1801.8,6.8339]
[1743393020939,5.5492,1802.1,1801.8,6.8339]
[1743393021522,13.203014,1802.4,1801.9,5.54963]
[1743393021834,12.4176714,1802.3,1801.9,5.54963]
[1743393022037,6.8689614,1802.3,1801.9,5.54963]
[1743393022240,12.4176814,1802.3,1801.9,5.54963]
[1743393022810,5.54892,1802.2,1801.8,17.93388]
[1743393023240,6.8689614,1802.3,1801.9,5.54965]
[1743393023442,5.54877,1802.2,1801.9,5.54965]
[1743393023922,6.8689614,1802.3,1801.9,5.54965]
[1743393024112,12.4177314,1802.3,1801.9,5.54965]
[1743393024307,5.54877,1802.2,1801.8,12.38389]
[1743393025144,5.54877,1802.2,1801.8,17.9337]
[1743393026162,12.4177314,1802.3,1801.9,5.54963]
[1743393026463,6.8689614,1802.3,1801.9,5.54963]
[1743393026657,5.54866,1802.3,1801.9,5.54963]
[1743393027127,5.54866,1802.3,1801.9,6.65537168]
[1743393027329,5.54877,1802.2,1801.9,6.65537168]
[1743393027529,5.54877,1802.2,1801.9,1.10574168]
[1743393027845,5.54866,1802.3,1802.0,5.54938]
[1743393028157,6.33259,1802.5,1801.9,6.65530168]
[1743393028158,0.7845,1802.5,1802.1,5.54891]
[1743393028463,5.54794,1802.5,1802.1,5.54902]
[1743393028659,1.32105531,1802.5,1802.0,0.8258]
[1743393028965,5.54832,1802.4,1802.0,0.8258]
[1743393029259,5.54822,1802.4,1802.0,6.37502]
[1743393029454,5.54812,1802.5,1802.0,0.8258]
[1743393029643,17.8679,1802.7,1802.3,5.54823]
[1743393029956,5.54767,1802.6,1802.3,6.003]
[1743393030538,11.09549,1802.6,1802.3,6.003]
[1743393030733,6.739539,1802.6,1802.3,6.003]
[1743393031049,6.37046,1802.7,1802.3,6.003]
[1743393031447,5.54726,1802.7,1802.3,6.003]
[1743393031657,5.54726,1802.7,1802.3,12.37716]
[1743393031835,5.54726,1802.7,1802.3,17.92551]
[1743393032036,11.49694,1802.8,1802.4,5.5481]
[1743393032241,6.46982,1802.9,1802.4,5.54804]
[1743393032562,0.1,1802.9,1802.4,0.8258]
[1743393032763,0.1,1802.9,1802.8,0.8258]
[1743393033069,0.1,1802.9,1802.8,12.35672]
[1743393033465,0.1,1802.9,1802.8,12.90672]
[1743393033668,0.1,1802.9,1802.8,12.35672]
[1743393034363,0.1,1802.9,1802.8,12.90672]
[1743393034959,0.1,1802.9,1802.8,13.32634065]
[1743393035160,1e-05,1802.9,1802.8,16.32634065]
[1743393035356,1e-05,1802.9,1802.8,14.4157474]
[1743393035561,1e-05,1802.9,1802.8,28.9157474]
[1743393036069,1e-05,1802.9,1802.8,1.08940675]
[1743393036269,1e-05,1802.9,1802.8,7.07840675]
[1743393036637,5.54662,1802.9,1802.8,7.07840675]
[1743393036837,5.54662,1802.9,1802.8,5.989]
[1743393038064,1e-05,1802.9,1802.8,5.989]
[1743393038453,5.54662,1802.9,1802.8,5.989]
[1743393039468,1e-05,1802.9,1802.8,5.989]
[1743393039860,6.7732,1802.9,1802.5,32.033]
[1743393040059,5.5475,1802.7,1802.5,32.033]
[1743393040439,5.54754,1802.6,1802.3,5.98]
[1743393040640,5.54797,1802.5,1802.3,5.98]
[1743393040971,5.54754,1802.6,1802.3,7.08653435]
[1743393041139,11.49693,1802.8,1802.3,5.98]
[1743393041342,5.54727,1802.7,1802.3,11.52834]
[1743393041545,5.54773,1802.6,1802.3,5.98]
[1743393041745,11.09554,1802.6,1802.3,5.98]
[1743393041969,5.54773,1802.6,1802.3,5.98]
[1743393042474,11.09496,1802.7,1802.3,5.98]
[1743393042874,5.54747,1802.7,1802.3,11.52833]
[1743393043173,5.94999,1802.8,1802.5,5.54758]
[1743393043671,5.94999,1802.8,1802.5,11.09531]
[1743393043889,5.94999,1802.8,1802.6,5.54749]
[1743393044063,5.94999,1802.8,1802.7,5.991]
[1743393044269,5.54663,1802.9,1802.7,5.991]
[1743393044643,1e-05,1802.9,1802.7,5.991]
[1743393044886,5.54666,1802.9,1802.7,5.991]
[1743393046981,1e-05,1802.9,1802.7,5.991]
[1743393047376,5.5467,1802.9,1802.7,5.991]
[1743393047683,1e-05,1802.9,1802.7,6.5901]
[1743393048002,1e-05,1802.9,1802.8,5.54692]
[1743393048287,1e-05,1802.9,1802.8,6.31272]
[1743393049962,1e-05,1802.9,1802.8,7.28428382]
[1743393050776,1e-05,1802.9,1802.8,21.78428382]
[1743393052794,1e-05,1802.9,1802.8,22.88098913]
[1743393054754,1e-05,1802.9,1802.8,25.88098913]
[1743393054956,0.887,1803.9,1803.7,5.54413]
[1743393055157,0.887,1803.9,1803.7,11.46513]
[1743393055380,0.1,1803.9,1803.7,11.46513]
[1743393055590,0.1,1803.9,1803.8,5.54385]
[1743393056566,0.1,1803.9,1803.8,6.30965]
[1743393058181,0.1,1803.9,1803.6,43.47433]